lending/lending_fUSD_20240411
["ID","MTS","AMOUNT","RATE_DAILY","PERIOD"]
[322126903,1712821840223,-150.0,0.00029782,2]
[322126904,1712821840232,-150.0,0.00029789,2]
[322126905,1712821840241,-150.0,0.00029792,2]
[322126906,1712821840251,-150.0,0.00029795,2]
[322126907,1712821840259,-150.0,0.00029799,2]
[322126908,1712821840268,-150.0,0.00029802,2]
[322126909,1712821840277,-150.0,0.00029803,2]
[322126910,1712821840286,-150.0,0.00029804,2]
[322126911,1712821840295,-150.0,0.00029827,2]
[322126912,1712821840304,-150.0,0.00029828,2]
[322126913,1712821840313,-150.0,0.00029839,2]
[322126914,1712821840323,-150.0,0.00029847,2]
[322126915,1712821840332,-150.0,0.00029848,2]
[322126916,1712821840341,-150.0,0.0002985,2]
[322126917,1712821840352,-150.0,0.0002985,2]
[322126918,1712821840362,-150.0,0.00029851,2]
[322126919,1712821840373,-150.0,0.00029856,2]
[322126920,1712821840381,-150.0,0.00029858,2]
[322126921,1712821840391,-150.0,0.0002986,2]
[322126922,1712821840400,-150.0,0.00029868,2]
[322126923,1712821840409,-150.0,0.00029868,2]
[322126924,1712821840419,-150.0,0.00029873,2]
[322126925,1712821840430,-150.0,0.00029873,2]
[322126926,1712821840439,-150.0,0.00029876,2]
[322126927,1712821840448,-23.9500628,0.00029876,2]
[322126928,1712821840464,-126.0499372,0.00029876,2]
[322126929,1712821840473,-265.40341631,0.00029879,2]
[322126930,1712821840484,-150.0,0.00029882,2]
[322126931,1712821840493,-150.0,0.00029883,2]
[322126932,1712821840503,-150.0,0.00029883,2]
[322126933,1712821840513,-150.0,0.00029883,2]
[322126934,1712821840522,-150.0,0.00029893,2]
[322126935,1712821840532,-150.0,0.00029896,2]
[322126936,1712821840547,-150.0,0.00029902,2]
[322126937,1712821840557,-150.0,0.00029903,2]
[322126939,1712821840566,-150.0,0.00029928,2]
[322126941,1712821840576,-150.0,0.0002993,2]
[322126943,1712821840586,-150.0,0.00029941,2]
[322126945,1712821840595,-150.0,0.00029948,2]
[322126947,1712821840605,-150.0,0.00029949,2]
[322126949,1712821840617,-150.0,0.00029961,2]
[322126952,1712821840626,-150.0,0.00029962,2]
[322126956,1712821840635,-150.0,0.00029966,2]
[322126960,1712821840644,-150.0,0.00029979,2]
[322126961,1712821840654,-150.0,0.00029979,2]
[322126963,1712821840663,-150.0,0.00029987,2]
[322126965,1712821840672,-150.0,0.00029988,2]
[322126967,1712821840681,-150.0,0.0002999,2]
[322126969,1712821840691,-150.0,0.0002999,2]
[322126971,1712821840701,-150.0,0.00029993,2]
[322126972,1712821840710,-150.0,0.00029996,2]
[322126973,1712821840720,-82813.18775175,0.0003,2]
[322126974,1712821840729,-2225.78221272,0.0003,2]
[322126975,1712821840741,-29711.35455414,0.0003,2]
[322126976,1712821840754,-32081.28741024,0.0003,2]
[322126977,1712821840766,-29573.3826122,0.0003,2]
[322126978,1712821840780,-2778.09211865,0.0003,2]
[322126979,1712821840792,-1641.02539894,0.0003,2]
[322126980,1712821840806,-93528.3935633,0.0003,2]
[322126981,1712821840815,-1857.9327,0.0003,2]
[322126982,1712821840824,-2218.96942371,0.0003,3]
[322126983,1712821840834,-23724.57526363,0.0003,4]
[322126984,1712821840844,-8099.33749659,0.0003,2]
[322126985,1712821840854,-6940.19935947,0.0003,2]
[322126986,1712821840864,-5588.5921933,0.0003,4]
[322126987,1712821841349,-366.93801721,0.0003,4]
[322126988,1712821841370,-355.33585761,0.0003,4]
[322126989,1712821841382,-13002.41273483,0.0003,4]
[322126990,1712821841391,-405.62390649,0.0003,4]
[322126991,1712821841401,-450.0,0.0003,4]
[322126992,1712821841410,-394.0,0.0003,2]
[322126993,1712821841419,-5283.25369775,0.0003,15]
[322126994,1712821841429,-3594.1129992,0.0003,2]
[322126995,1712821841473,-383.35813832,0.0003,2]
[322126996,1712821841484,-945.17780091,0.0003,2]
[322126997,1712821841563,-1078.628503,0.0003,2]
[322127006,1712821843245,-1199.99059053,0.0003,2]
[322127007,1712821843304,-2339.14988981,0.0003,2]
[322127008,1712821843315,-4490.40562242,0.0003,2]
[322127009,1712821843327,-912.40058275,0.0003,2]
[322127010,1712821843382,-1095.5994,0.0003,2]
[322127011,1712821843438,-3222.6225957,0.0003,2]
[322127069,1712821846192,-350.92208942,0.00029999,2]
[322127071,1712821846202,-322.14616807,0.0003,2]
[322127076,1712821846402,-562.74532621,0.00029999,2]
[322127077,1712821846411,-1776.37429247,0.0003,2]
[322127078,1712821846424,-2273.83887988,0.0003,2]
[322127079,1712821846452,-9353.47105616,0.0003,2]
[322127080,1712821846503,-354.91814262,0.0003,2]
[322127081,1712821846526,-5641.45409983,0.0003,2]
[322127082,1712821846579,-1509.84906993,0.0003,2]
[322127085,1712821926870,166.91947,0.00032916,30]
[322127090,1712822584784,150.5,0.0002099,15]
[322127091,1712822585241,150.5,0.0002098,15]
[322127092,1712822585759,150.5,0.0002097,15]
[322127093,1712822813123,-3076.4815945,0.00019785,2]
[322127094,1712822813143,-487.12072145,0.00019786,2]
[322127095,1712822813163,-3404.63074119,0.00019786,2]
[322127096,1712822813183,-316.0,0.00019787,2]
[322127097,1712822813207,-275.2,0.00019789,2]
[322127098,1712822813227,-3459.39036,0.0001996,2]
[322127099,1712822813249,-2909.99,0.00020226,2]
[322127100,1712822813270,-161.86403933,0.00020694,2]
[322127101,1712822813291,-3542.88531628,0.000208,2]
[322127102,1712822813311,-3542.88531627,0.00020811,2]
[322127103,1712822813331,-3542.88531627,0.00020822,2]
[322127104,1712822813350,-3542.88531627,0.00020833,2]
[322127105,1712822813372,-3542.88531627,0.00020844,2]
[322127106,1712822813393,-3542.88531627,0.00020856,2]
[322127107,1712822813416,-3542.88531627,0.00020867,2]
[322127108,1712822813436,-3542.88531627,0.00020878,2]
[322127109,1712822813456,-3542.88531627,0.00020889,2]
[322127110,1712822813475,-156.40568673,0.00020898,2]
[322127111,1712822813495,-407.37933712,0.00020898,2]
[322127112,1712822813515,-10227.76107379,0.00020898,2]
[322127113,1712822813535,-167.51746447,0.00020899,2]
[322127114,1712822813553,-201.84235747,0.00020899,2]
[322127115,1712822813573,-3475.14497539,0.00020899,2]
[322127116,1712822813594,-11924.6425,0.00020899,2]
[322127117,1712822813614,-11924.64249994,0.00020899,2]
[322127118,1712822813871,-11924.64249994,0.00020899,2]
[322127119,1712822813896,-11924.64249994,0.00020899,2]
[322127120,1712822813919,-11628.28266614,0.000209,2]
[322127121,1712822813942,-8014.73327028,0.000209,2]
[322127122,1712822813963,-249.53347688,0.000209,2]
[322127123,1712822813985,-151.38857121,0.000209,2]
[322127124,1712822814006,-249.53347688,0.000209,2]
[322127125,1712822814027,-249.53347688,0.000209,2]
[322127126,1712822814048,-249.53347688,0.000209,2]
[322127127,1712822814069,-249.53347688,0.000209,2]
[322127128,1712822814089,-249.53347688,0.000209,2]
[322127129,1712822814112,-249.53347688,0.000209,2]
[322127130,1712822814134,-249.53347688,0.000209,2]
[322127131,1712822814157,-249.53347688,0.000209,2]
[322127132,1712822814181,-249.53347688,0.000209,2]
[322127133,1712822814201,-339.74931506,0.000209,2]
[322127134,1712822814224,-249.53347688,0.000209,2]
[322127135,1712822814247,-249.53347688,0.000209,2]
[322127136,1712822814270,-249.53347688,0.000209,2]
[322127137,1712822814293,-249.53347688,0.000209,2]
[322127138,1712822814313,-249.53347688,0.000209,2]
[322127139,1712822814335,-249.53347688,0.000209,2]
[322127140,1712822814355,-176.4868392,0.000209,2]
[322127141,1712822814377,-3542.88531627,0.000209,2]
[322127142,1712822814399,-10810.83174336,0.000209,2]
[322127143,1712822814419,-319.39308481,0.000209,2]
[322127144,1712822814439,-6528.09434911,0.000209,2]
[322127145,1712822814460,-184.99669099,0.000209,2]
[322127146,1712822814480,-2913.98285543,0.000209,2]
[322127147,1712822814500,-178.76507787,0.000209,2]
[322127148,1712822814520,-203.48691248,0.0002099,2]
[322127149,1712822814539,-203.48691248,0.0002099,2]
[322127150,1712822814560,-194.43899637,0.00020998,2]
[322127151,1712822814580,-246.62874333,0.00020998,2]
[322127152,1712822814600,-2511.36860627,0.00020998,2]
[322127153,1712822814620,-368.47878206,0.00020998,2]
[322127154,1712822814640,-266.41638357,0.00020998,2]
[322127155,1712822814660,-307.95729271,0.00020998,2]
[322127156,1712822814680,-1058.17735735,0.00020998,2]
[322127157,1712822814702,-206.4109594,0.00020998,2]
[322127158,1712822814726,-1238.7212054,0.00020998,2]
[322127159,1712822814748,-155.85735465,0.00020998,2]
[322127160,1712822814769,-155.95222521,0.00020998,2]
[322127161,1712822814789,-201.43475539,0.00020998,2]
[322127162,1712822814810,-642.17855677,0.00020998,2]
[322127163,1712822814834,-163.64221507,0.00020998,2]
[322127164,1712822814853,-253.62432224,0.00020998,2]
[322127165,1712822814872,-237.99764573,0.00020998,2]
[322127166,1712822814893,-203.92531647,0.00020998,2]
[322127167,1712822814917,-363.87948677,0.00020998,2]
[322127168,1712822814938,-928.37505763,0.00020998,2]
[322127169,1712822814959,-1782.58175244,0.00020998,2]
[322127170,1712822814980,-257.9924181,0.00020998,2]
[322127171,1712822814999,-206.27456611,0.00020998,2]
[322127172,1712822815019,-278.21787647,0.00020998,2]
[322127173,1712822815038,-4312.61714156,0.00020998,2]
[322127174,1712822815057,-376.29834861,0.00020998,2]
[322127175,1712822815076,-1596.54483169,0.00020999,2]
[322127176,1712822815095,-858.36085963,0.00020999,2]
[322127177,1712822815114,-5716.89830622,0.00020999,2]
[322127178,1712822815133,-500.0,0.00020999,2]
[322127179,1712822815151,-500.0,0.00020999,2]
[322127180,1712822815170,-500.0,0.00020999,2]
[322127181,1712822815190,-462.13316346,0.00020999,2]
[322127182,1712822815208,-500.0,0.00020999,2]
[322127183,1712822815227,-204.48882648,0.00020999,2]
[322127184,1712822815246,-282.14770849,0.00020999,2]
[322127185,1712822815264,-500.0,0.00020999,2]
[322127186,1712822815284,-500.0,0.00020999,2]
[322127187,1712822815304,-500.0,0.00020999,2]
[322127188,1712822815323,-500.0,0.00020999,2]
[322127189,1712822815342,-500.0,0.00020999,2]
[322127190,1712822815362,-500.0,0.00020999,2]
[322127191,1712822815381,-500.0,0.00020999,2]
[322127192,1712822815402,-500.0,0.00020999,2]
[322127193,1712822815421,-500.0,0.00020999,2]
[322127194,1712822815443,-315.83600141,0.00020999,2]
[322127195,1712822815464,-500.0,0.00020999,2]
[322127196,1712822815484,-500.0,0.00020999,2]
[322127197,1712822815503,-500.0,0.00020999,2]
[322127198,1712822815523,-500.0,0.00020999,2]
[322127199,1712822815544,-500.0,0.00020999,2]
[322127200,1712822815565,-350.95718164,0.00020999,2]
[322127201,1712822815585,-500.0,0.00020999,2]
[322127202,1712822815605,-500.0,0.00020999,2]
[322127203,1712822815625,-500.0,0.00020999,2]
[322127204,1712822815644,-500.0,0.00020999,2]
[322127205,1712822815664,-500.0,0.00020999,2]
[322127206,1712822815684,-500.0,0.00020999,2]
[322127207,1712822815704,-500.0,0.00020999,2]
[322127208,1712822815724,-500.0,0.00020999,2]
[322127209,1712822815744,-500.0,0.00020999,2]
[322127210,1712822815763,-205.02390641,0.00020999,2]
[322127211,1712822815783,-500.0,0.00020999,2]
[322127212,1712822815802,-500.0,0.00020999,2]
[322127213,1712822815825,-500.0,0.00020999,2]
[322127214,1712822815845,-500.0,0.00020999,2]
[322127215,1712822815865,-500.0,0.00020999,2]
[322127216,1712822815885,-410.36577034,0.00020999,2]
[322127217,1712822815904,-155.748897,0.00020999,2]
[322127218,1712822815924,-1927.11,0.00021,2]
[322127219,1712822815945,-744.41615335,0.00021,2]
[322127220,1712822815964,-10794.64,0.00021,2]
[322127221,1712822815987,-3041702.91709573,0.00021,2]
[322127244,1712823032278,-155.0,0.00019588,2]
[322127247,1712823032288,-161.87693734,0.00019589,2]
[322127248,1712823032299,-743.58284814,0.00019685,2]
[322127249,1712823032387,-1030.22976802,0.00019685,2]
[322127250,1712823032396,-3076.4815945,0.00019686,2]
[322127251,1712823032406,-1773.81261616,0.00019687,2]
[322127252,1712823032416,-3498.2249,0.00019689,2]
[322127253,1712823032426,-150.0,0.00020057,2]
[322127254,1712823032434,-2645.45112132,0.00020284,2]
[322127255,1712823032473,-2379.96522968,0.00020284,2]
[322127256,1712823032482,-973.96197972,0.00020284,2]
[322127257,1712823032494,-2258.23850883,0.00020284,2]
[322127258,1712823032513,-756.03810701,0.00020284,2]
[322127259,1712823032524,-1011.76140444,0.00020284,2]
[322127260,1712823032533,-970.21683923,0.00020284,2]
[322127261,1712823032584,-4029.78316077,0.00020284,2]
[322127262,1712823032594,-500.0,0.00020543,2]
[322127263,1712823032602,-991.294672,0.00020588,2]
[322127264,1712823032612,-2825.45,0.00020824,2]
[322127265,1712823032621,-161.87693734,0.00020898,2]
[322127266,1712823032631,-11924.64249994,0.00020899,2]
[322127267,1712823032641,-11924.64249994,0.000209,2]
[322127268,1712823032650,-11924.64249994,0.000209,2]
[322127269,1712823032661,-499.99,0.000209,2]
[322127270,1712823032672,-11924.64249994,0.000209,2]
[322127271,1712823032681,-11924.64249994,0.000209,2]
[322127272,1712823032691,-1708.61993021,0.000209,2]
[322127310,1712823033283,-1054.71998718,0.000209,2]
[322127311,1712823033304,-5179.960867,0.000209,2]
[322127322,1712823038289,-468.50164004,0.000209,2]
[322127342,1712823038754,-1346.20794888,0.000209,2]
[322127344,1712823038769,-384.59479513,0.000209,2]
[322127346,1712823038782,-1782.0373315,0.000209,2]
[322127347,1712823038793,-166.35565131,0.000209,2]
[322127348,1712823038802,-166.35565128,0.000209,2]
[322127349,1712823038815,-166.35565128,0.000209,2]
[322127350,1712823038825,-166.35565128,0.000209,2]
[322127351,1712823038834,-174.34038148,0.000209,2]
[322127352,1712823038843,-166.35565128,0.000209,2]
[322127353,1712823038853,-166.35565128,0.000209,2]
[322127354,1712823038862,-521.40976991,0.000209,2]
[322127355,1712823038872,-288.82328623,0.000209,2]
[322127356,1712823038883,-4147.65168804,0.00020975,4]
[322127357,1712823038893,-3012.42908555,0.00020977,2]
[322127358,1712823038902,-371.46,0.00020988,3]
[322127359,1712823038911,-277.89969253,0.00020996,2]
[322127360,1712823038921,-305.27766941,0.00020996,2]
[322127361,1712823038930,-184.05245673,0.00020996,2]
[322127362,1712823038941,-195.24769107,0.00020996,2]
[322127363,1712823038952,-2085.70572677,0.00020996,2]
[322127364,1712823038963,-309.06957606,0.00020996,2]
[322127365,1712823038972,-155.61322452,0.00020996,2]
[322127366,1712823038982,-409.23108518,0.00020996,2]
[322127367,1712823038991,-448.64215521,0.00020996,2]
[322127368,1712823039001,-160.3061464,0.00020996,2]
[322127369,1712823039011,-623.53938011,0.00020996,2]
[322127370,1712823039020,-2307.7070106,0.00020996,2]
[322127371,1712823039029,-155.58368933,0.00020996,2]
[322127372,1712823039039,-408.4031128,0.00020996,2]
[322127373,1712823039048,-177.03490744,0.00020996,2]
[322127374,1712823039058,-270.05509214,0.00020996,2]
[322127375,1712823039068,-3382.95455978,0.00020996,2]
[322127376,1712823039078,-155.20185513,0.00020997,2]
[322127377,1712823039088,-1955.23183089,0.00020997,2]
[322127378,1712823039101,-157.041117,0.00020997,4]
[322127379,1712823039112,-157.041117,0.00020997,4]
[322127380,1712823039122,-157.041117,0.00020997,4]
[322127381,1712823039133,-157.041117,0.00020997,4]
[322127382,1712823039143,-157.041117,0.00020997,4]
[322127383,1712823039153,-203.53725637,0.00020998,2]
[322127384,1712823039162,-155.45132678,0.00020998,2]
[322127385,1712823039172,-185159.51703537,0.00020998,2]
[322127386,1712823039185,-370.96436731,0.00020998,2]
[322127387,1712823039197,-16718.62795874,0.00020998,2]
[322127388,1712823039210,-3992.2432,0.00020998,2]
[322127389,1712823039222,-394.625,0.00020998,2]
[322127390,1712823039235,-345290.58531792,0.00020998,2]
[322127391,1712823039245,-3378.60942866,0.00020998,2]
[322127392,1712823039255,-155.12181137,0.00020998,2]
[322127393,1712823039265,-155.65274348,0.00020998,2]
[322127394,1712823039276,-179.45365214,0.00020998,2]
[322127395,1712823039285,-1768.48201078,0.00020998,2]
[322127396,1712823039295,-157.041117,0.00020998,4]
[322127397,1712823039305,-157.041117,0.00020998,4]
[322127398,1712823039314,-157.041117,0.00020998,4]
[322127399,1712823039324,-157.041117,0.00020998,4]
[322127400,1712823039334,-157.041117,0.00020998,4]
[322127401,1712823039344,-157.041117,0.00020998,4]
[322127402,1712823039354,-157.041117,0.00020998,4]
[322127403,1712823039364,-157.041117,0.00020998,4]
[322127404,1712823039381,-644.82471199,0.00020999,2]
[322127405,1712823039390,-624.81043763,0.00020999,2]
[322127406,1712823039400,-155.38545165,0.00020999,2]
[322127407,1712823039410,-224.59406512,0.00020999,2]
[322127408,1712823039420,-1650.0026369,0.00020999,2]
[322127409,1712823039430,-10708070.51869756,0.00021,2]
[322127410,1712823039443,-89030.42331798,0.00021,2]
[322127411,1712823039456,-251.132,0.00021,2]
[322127429,1712823040279,-157.041117,0.00020997,4]
[322127431,1712823040289,-157.041117,0.00020997,4]
[322127433,1712823040298,-157.041117,0.00020997,4]
[322127435,1712823040307,-157.041117,0.00020997,4]
[322127437,1712823040317,-157.041117,0.00020997,4]
[322127438,1712823040330,-488.87350912,0.00021,2]
[322127439,1712823040339,-1004376.58240273,0.00021,2]
[322127440,1712823040349,-911.44,0.00021,2]
[322127441,1712823040358,-234532.41955227,0.00021,2]
[322127442,1712823040368,-604.94,0.00021,2]
[322127443,1712823040377,-250.0,0.00021,3]
[322127444,1712823040387,-599.0,0.000216,2]
[322127445,1712823040396,-497.77,0.00021664,2]
[322127446,1712823040406,-151.38857113,0.00021767,2]
[322127447,1712823040415,-250.0,0.00021918,2]
[322127448,1712823040425,-250.0,0.00021918,2]
[322127449,1712823040434,-783.81607988,0.00022,2]
[322127450,1712823040443,-562.74532621,0.00022,2]
[322127451,1712823040453,-275.2,0.00022053,2]
[322127452,1712823040462,-151.38857113,0.00022633,2]
[322127453,1712823040473,-500.0,0.00022818,2]
[322127454,1712823040482,-307.11461416,0.00023,2]
[322127455,1712823040491,-300.0,0.00023,3]
[322127456,1712823040500,-1000.0,0.00023165,2]
[322127457,1712823040510,-151.38857113,0.000235,2]
[322127458,1712823040519,-2825.45,0.00023564,2]
[322127459,1712823040528,-224.65965367,0.00024,2]
[322127460,1712823040538,-730.638,0.0002404,2]
[322127461,1712823040548,-275.2,0.00024317,2]
[322127462,1712823040557,-151.38857113,0.00024367,2]
[322127463,1712823040567,-2223.99943328,0.000248,2]
[322127464,1712823040576,-2603.91013845,0.00025,2]
[322127465,1712823040585,-350.0,0.00025,3]
[322127466,1712823040595,-151.38857113,0.00025234,2]
[322127467,1712823040605,-897.68457714,0.00025956,2]
[322127468,1712823040614,-521.40976989,0.00026031,2]
[322127469,1712823040624,-288.82328621,0.00026041,2]
[322127470,1712823040634,-1000.0,0.00026061,2]
[322127471,1712823040643,-151.38857113,0.000261,2]
[322127472,1712823040653,-2825.45,0.00026304,2]
[322127473,1712823040662,-604.94,0.000265,2]
[322127474,1712823040672,-275.2,0.0002658,2]
[322127475,1712823040682,-164.44730671,0.00026626,2]
[322127476,1712823040692,-163.44113223,0.00026745,2]
[322127477,1712823040702,-166.91198249,0.00026777,2]
[322127478,1712823040711,-150.76473124,0.000268,2]
[322127479,1712823040721,-151.38857113,0.00026967,2]
[322127480,1712823040730,-150.76473124,0.00026976,2]
[322127482,1712823040740,-400.0,0.00027,3]
[322127484,1712823040749,-270.34664743,0.00027191,2]
[322127486,1712823040759,-152.6758148,0.00027193,2]
[322127487,1712823040768,-154.36695506,0.00027215,2]
[322127488,1712823040777,-270.34664743,0.00027268,2]
[322127489,1712823040787,-327.33550357,0.00027322,2]
[322127490,1712823040796,-269.39941821,0.00027322,2]
[322127491,1712823040806,-152.33080863,0.00027385,2]
[322127492,1712823040815,-286.54,0.00027397,2]
[322127493,1712823040825,-152.6758148,0.00027401,2]
[322127495,1712823040834,-152.6758148,0.00027437,2]
[322127497,1712823040844,-224.9147749,0.00027519,2]
[322127499,1712823040853,-166.66666666,0.00027641,2]
[322127500,1712823040862,-165.96780529,0.00027777,2]
[322127501,1712823040872,-152.6758148,0.0002781,2]
[322127502,1712823040883,-166.91198249,0.00027829,2]
[322127503,1712823040892,-151.38857113,0.00027834,2]
[322127504,1712823040902,-154.36695506,0.00027981,2]
[322127505,1712823040911,-224.9147749,0.00027996,2]
[322127506,1712823040922,-152.00108288,0.00028111,2]
[322127507,1712823040932,-154.4312507,0.00028182,2]
[322127508,1712823040941,-155.0000122,0.00028276,2]
[322127509,1712823040951,-270.34664743,0.00028418,2]
[322127510,1712823040963,-270.34664743,0.00028441,2]
[322127511,1712823040973,-153.94987676,0.00028454,2]
[322127512,1712823040982,-284.77502225,0.00028526,2]
[322127513,1712823040991,-284.77502225,0.00028552,2]
[322127514,1712823041001,-152.00108288,0.00028573,2]
[322127515,1712823041010,-284.77502225,0.00028574,2]
[322127516,1712823041020,-154.36695506,0.00028584,2]
[322127517,1712823041030,-604.94,0.000286,2]
[322127518,1712823041039,-152.00108288,0.00028604,2]
[322127519,1712823041048,-154.4312507,0.00028689,2]
[322127520,1712823041058,-151.38857113,0.000287,2]
[322127521,1712823041068,-152.00108288,0.00028736,2]
[322127522,1712823041077,-275.2,0.00028844,2]
[322127523,1712823041087,-270.34664743,0.00028879,2]
[322127524,1712823041097,-360.7225945,0.0002888,2]
[322127525,1712823041107,-152.33080863,0.00028913,2]
[322127526,1712823041116,-1000.0,0.00028957,2]
[322127527,1712823041126,-6745.48276377,0.00029,2]
[322127528,1712823041136,-450.0,0.00029,3]
[322127529,1712823041145,-154.36695506,0.0002917,2]
[322127530,1712823041155,-284.77502225,0.00029331,2]
[322127531,1712823041165,-163.44113223,0.00029428,2]
[322127532,1712823041174,-164.88065737,0.00029455,2]
[322127533,1712823041183,-151.38857113,0.00029567,2]
[322127534,1712823041193,-88667.2823,0.000296,2]
[322127535,1712823041202,-153.94987676,0.00029609,2]
[322127536,1712823041211,-105038.8176,0.0002966,2]
[322127537,1712823041220,-150.0,0.00029686,2]
[322127538,1712823041229,-888.4512,0.000297,2]
[322127539,1712823041238,-500.0,0.00029759,2]
[322127540,1712823041248,-1000.0,0.0002976,8]
[322127541,1712823041257,-500.0,0.0002976,2]
[322127542,1712823041267,-327.0,0.000299,5]
[322127543,1712823041276,-270.34664743,0.00029954,2]
[322127544,1712823041286,-154.36695506,0.00029957,2]
[322127545,1712823041295,-153.17,0.0002998,15]
[322127546,1712823041305,-150.5,0.0002999,15]
[322127547,1712823041314,-712.00836455,0.00029998,2]
[322127548,1712823041323,-501.22268643,0.00029998,2]
[322127549,1712823041333,-218.58382044,0.00029998,2]
[322127550,1712823041343,-62216.28116531,0.00029999,2]
[322127551,1712823041352,-5190.7025974,0.00029999,2]
[322127552,1712823041362,-18507.0004575,0.00029999,2]
[322127553,1712823041371,-48926.3932653,0.00029999,2]
[322127554,1712823041381,-3091.2318085,0.00029999,2]
[322127555,1712823041391,-549.28632694,0.00029999,2]
[322127556,1712823041401,-100000.0,0.0003,2]
[322127557,1712823041411,-392667.5021684,0.0003,2]
[322127558,1712823041421,-274469.26253702,0.0003,3]
[322127559,1712823041431,-2878.22126822,0.0003,2]
[322127560,1712823041441,-405.62390649,0.0003,4]
[322127561,1712823041451,-23724.57526363,0.0003,4]
[322127562,1712823041461,-6940.19935947,0.0003,2]
[322127563,1712823041471,-19313.27880295,0.0003,4]
[322127564,1712823041480,-8099.33749659,0.0003,2]
[322127565,1712823041490,-6000.0,0.0003,2]
[322127566,1712823041499,-331.0,0.0003,2]
[322127567,1712823041760,-2219.59106736,0.0003,3]
[322127568,1712823041770,-150.0,0.0003,2]
[322127569,1712823041779,-52314.0626293,0.00030034,2]
[322127570,1712823041789,-624.0,0.00030055,2]
[322127571,1712823041798,-284.77502225,0.0003006,7]
[322127572,1712823041808,-5000.0,0.000301,4]
[322127573,1712823041817,-525.0,0.0003011,2]
[322127574,1712823041826,-7431.22,0.00030145,5]
[322127575,1712823041836,-7329.68,0.00030148,5]
[322127576,1712823041845,-497.77,0.00030329,2]
[322127577,1712823041854,-1242.6628078,0.00030387,2]
[322127578,1712823041864,-151.38857113,0.00030434,2]
[322127579,1712823041878,-157.041114,0.00030448,10]
[322127580,1712823041887,-176.61357959,0.00030493,7]
[322127581,1712823041896,-604.94,0.000305,2]
[322127582,1712823041905,-7003.29431075,0.00030546,30]
[322127583,1712823041915,-154.36695506,0.00030597,7]
[322127584,1712823041924,-911.44,0.000306,2]
[322127585,1712823041933,-166.91198249,0.00030631,7]
[322127586,1712823041944,-173.82299037,0.00030986,30]
[322127587,1712823041954,-100000.0,0.00031,2]
[322127588,1712823041964,-490.69655097,0.00031,4]
[322127589,1712823041973,-500.0,0.00031,3]
[322127590,1712823041982,-6098.0,0.00031,30]
[322127591,1712823041992,-153.94987676,0.00031048,7]
[322127592,1712823042001,-150.76473124,0.0003108,7]
[322127593,1712823042010,-150.76473124,0.00031083,7]
[322127594,1712823042021,-152.179307,0.00031096,2]
[322127595,1712823042031,-150.0,0.00031096,2]
[322127596,1712823042042,-150.0,0.00031096,2]
[322127597,1712823042051,-150.0,0.00031096,2]
[322127598,1712823042061,-150.0,0.00031096,2]
[322127599,1712823042070,-300.0,0.00031096,2]
[322127600,1712823042080,-150.0,0.00031096,2]
[322127601,1712823042090,-150.0,0.00031096,2]
[322127602,1712823042099,-150.0,0.00031096,2]
[322127603,1712823042109,-275.2,0.00031108,2]
[322127604,1712823042118,-521.40976989,0.00031161,2]
[322127605,1712823042128,-288.82328621,0.00031182,2]
[322127606,1712823042138,-2585.66441453,0.00031212,2]
[322127607,1712823042147,-16127.8160338,0.00031261,2]
[322127608,1712823042156,-42636.61589,0.00031261,2]
[322127609,1712823042166,-2664.8103138,0.00031261,2]
[322127610,1712823042175,-45126.3741924,0.00031261,2]
[322127611,1712823042186,-6924.06841522,0.00031282,2]
[322127612,1712823042196,-151.38857113,0.00031301,2]
[322127613,1712823042206,-166.91198249,0.00031318,7]
[322127614,1712823042216,-156.75841592,0.00031374,7]
[322127615,1712823042225,-173.82299037,0.00031425,30]
[322127616,1712823042235,-624.0,0.00031425,2]